fUST/lending_fUST_20240930
["ID","MTS","AMOUNT","RATE_DAILY","PERIOD"]
[339538331,1727682661343,-500.0,0.00014933,2]
[339538332,1727682661352,-500.0,0.00014933,2]
[339538333,1727682661362,-500.0,0.00014933,2]
[339538334,1727682661375,-500.0,0.00014933,2]
[339538335,1727682661384,-500.0,0.00014933,2]
[339538336,1727682661394,-612.08,0.00014933,2]
[339538337,1727682661404,-771.26,0.00014933,2]
[339538338,1727682661414,-500.0,0.00014933,2]
[339538339,1727682661596,-500.0,0.00014933,2]
[339538340,1727682661607,-500.0,0.00014933,2]
[339538341,1727682661617,-500.0,0.00014933,2]
[339538342,1727682661628,-500.0,0.00014933,2]
[339538343,1727682661637,-420.1816267,0.00014933,2]
[339538344,1727682661647,-500.0,0.00014933,2]
[339538345,1727682661657,-567.81544519,0.00014933,2]
[339538346,1727682661665,-588.18,0.00014933,2]
[339538347,1727682661675,-421.48296082,0.00014933,2]
[339538348,1727682661684,-617.46,0.00014933,2]
[339538349,1727682661693,-500.0,0.00014933,2]
[339538350,1727682661702,-500.0,0.00014933,2]
[339538351,1727682661711,-505.03,0.00014933,2]
[339538352,1727682661720,-500.0,0.00014933,2]
[339538353,1727682661729,-610.24,0.00014933,2]
[339538354,1727682661739,-500.0,0.00014933,2]
[339538355,1727682661749,-500.0,0.00014933,2]
[339538356,1727682661758,-500.0,0.00014933,2]
[339538357,1727682661767,-500.0,0.00014933,2]
[339538358,1727682661778,-500.0,0.00014933,2]
[339538359,1727682661788,-748.52,0.00014933,2]
[339538360,1727682661797,-500.0,0.00014933,2]
[339538361,1727682661806,-500.0,0.00014933,2]
[339538362,1727682661815,-500.0,0.00014933,2]
[339538363,1727682661824,-500.0,0.00014933,2]
[339538364,1727682661833,-500.0,0.00014933,2]
[339538365,1727682661843,-500.0,0.00014933,2]
[339538366,1727682661852,-500.0,0.00014933,2]
[339538367,1727682661861,-500.0,0.00014933,2]
[339538368,1727682661871,-500.0,0.00014933,2]
[339538369,1727682661881,-500.0,0.00014933,2]
[339538370,1727682661890,-905.98,0.00014933,2]
[339538371,1727682661900,-500.0,0.00014933,2]
[339538372,1727682661909,-500.0,0.00014933,2]
[339538373,1727682661919,-566.05,0.00014933,2]
[339538374,1727682661929,-245.99865928,0.00014933,2]
[339538375,1727682661938,-500.0,0.00014933,2]
[339538376,1727682661948,-500.0,0.00014933,2]
[339538377,1727682661957,-500.0,0.00014933,2]
[339538378,1727682661966,-500.0,0.00014933,2]
[339538379,1727682661976,-500.0,0.00014933,2]
[339538380,1727682661986,-500.0,0.00014933,2]
[339538381,1727682661995,-500.0,0.00014933,2]
[339538382,1727682662004,-405.773048,0.00014933,2]
[339538383,1727682662014,-835.09,0.00014933,2]
[339538384,1727682662023,-767.564565,0.00014933,2]
[339538385,1727682662034,-851.46,0.00014933,2]
[339538386,1727682662044,-767.564565,0.00014933,2]
[339538387,1727682662054,-585.88,0.00014933,2]
[339538388,1727682662063,-500.0,0.00014933,2]
[339538389,1727682662073,-586.47,0.00014933,2]
[339538390,1727682662083,-500.0,0.00014933,2]
[339538391,1727682662092,-500.0,0.00014933,2]
[339538392,1727682662101,-500.0,0.00014933,2]
[339538393,1727682662111,-500.0,0.00014933,2]
[339538394,1727682662121,-514.11133543,0.00014933,2]
[339538395,1727682662130,-1690.55,0.00014933,2]
[339538396,1727682662140,-500.0,0.00014933,2]
[339538397,1727682662150,-500.0,0.00014933,2]
[339538398,1727682662159,-500.0,0.00014933,2]
[339538399,1727682662168,-657.67,0.00014933,2]
[339538400,1727682662178,-695.49,0.00014933,2]
[339538401,1727682662187,-764.21,0.00014933,2]
[339538402,1727682662196,-500.0,0.00014933,2]
[339538403,1727682662205,-500.0,0.00014933,2]
[339538404,1727682662214,-500.0,0.00014933,2]
[339538405,1727682662224,-500.0,0.00014933,2]
[339538406,1727682662234,-306.10876644,0.00014933,2]
[339538407,1727682662244,-561.15847234,0.00014933,2]
[339538408,1727682662253,-500.0,0.00014933,2]
[339538409,1727682662263,-500.0,0.00014933,2]
[339538410,1727682662272,-501.21,0.00014933,2]
[339538411,1727682662283,-500.0,0.00014933,2]
[339538412,1727682662292,-484.62513483,0.00014933,2]
[339538413,1727682662301,-500.0,0.00014933,2]
[339538414,1727682662311,-2543.42,0.00014933,2]
[339538415,1727682662321,-571.7991864,0.00014933,2]
[339538416,1727682662331,-500.0,0.00014933,2]
[339538417,1727682662342,-500.0,0.00014933,2]
[339538418,1727682662351,-622.12,0.00014933,2]
[339538419,1727682662361,-500.0,0.00014933,2]
[339538420,1727682662374,-500.0,0.00014933,2]
[339538421,1727682662384,-500.0,0.00014933,2]
[339538422,1727682662394,-500.0,0.00014933,2]
[339538423,1727682662403,-1691.22,0.00014933,2]
[339538424,1727682662412,-151.0,0.00014933,2]
[339538425,1727682662422,-2200.34,0.00014933,2]
[339538426,1727682662431,-510.16542253,0.00014933,2]
[339538427,1727682662440,-500.0,0.00014933,2]
[339538428,1727682662451,-1044.95,0.00014933,2]
[339538429,1727682662462,-511.71,0.00014933,2]
[339538430,1727682662472,-500.0,0.00014933,2]
[339538431,1727682662481,-151.0,0.00014933,2]
[339538432,1727682662491,-500.0,0.00014933,2]
[339538433,1727682662500,-762.6,0.00014933,2]
[339538434,1727682662509,-151.0,0.00014933,2]
[339538435,1727682662518,-500.0,0.00014933,2]
[339538436,1727682662527,-816.54,0.00014933,2]
[339538437,1727682662537,-568.15935566,0.00014933,2]
[339538438,1727682662546,-741.56,0.00014933,2]
[339538439,1727682662555,-500.0,0.00014933,2]
[339538440,1727682662565,-500.0,0.00014933,2]
[339538441,1727682662574,-500.0,0.00014933,2]
[339538442,1727682662583,-500.0,0.00014933,2]
[339538443,1727682662593,-500.0,0.00014933,2]
[339538444,1727682662602,-500.0,0.00014933,2]
[339538445,1727682662611,-500.0,0.00014933,2]
[339538446,1727682662621,-500.0,0.00014933,2]
[339538447,1727682662630,-500.0,0.00014933,2]
[339538448,1727682662639,-500.0,0.00014933,2]
[339538449,1727682662649,-700.87,0.00014933,2]
[339538450,1727682662658,-565.73,0.00014933,2]
[339538451,1727682662668,-1340.48,0.00014933,2]
[339538452,1727682662678,-500.0,0.00014933,2]
[339538453,1727682662687,-1993.848234,0.00014933,2]
[339538454,1727682662696,-500.0,0.00014933,2]
[339538455,1727682662705,-500.0,0.00014933,2]
[339538456,1727682662715,-500.0,0.00014933,2]
[339538457,1727682662724,-500.0,0.00014933,2]
[339538458,1727682662734,-1993.848234,0.00014933,2]
[339538459,1727682662744,-500.0,0.00014933,2]
[339538460,1727682662753,-500.0,0.00014933,2]
[339538461,1727682662762,-1067.73,0.00014933,2]
[339538462,1727682662772,-500.0,0.00014933,2]
[339538463,1727682662781,-500.0,0.00014933,2]
[339538464,1727682662793,-500.0,0.00014933,2]
[339538465,1727682662802,-500.0,0.00014933,2]
[339538466,1727682662811,-590.29,0.00014933,2]
[339538467,1727682662820,-1394.061828,0.00014933,2]
[339538468,1727682662829,-500.0,0.00014933,2]
[339538469,1727682662838,-500.0,0.00014933,2]
[339538470,1727682662847,-500.0,0.00014933,2]
[339538471,1727682662856,-1394.061828,0.00014933,2]
[339538472,1727682662867,-5032.225479,0.00014933,2]
[339538473,1727682662876,-245.0823248,0.00014933,2]
[339538474,1727682662885,-238.831828,0.00014933,2]
[339538475,1727682662894,-5032.225479,0.00014933,2]
[339538476,1727682662904,-500.0,0.00014933,2]
[339538477,1727682662913,-238.831828,0.00014933,2]
[339538478,1727682662922,-151.0,0.00014933,2]
[339538479,1727682662931,-500.0,0.00014933,2]
[339538480,1727682662941,-500.0,0.00014933,2]
[339538481,1727682662950,-500.0,0.00014933,2]
[339538482,1727682662960,-500.0,0.00014933,2]
[339538483,1727682662970,-247.291262,0.00014933,2]
[339538484,1727682662980,-500.0,0.00014933,2]
[339538485,1727682662989,-500.0,0.00014933,2]
[339538486,1727682662998,-500.0,0.00014933,2]
[339538487,1727682663007,-678.05,0.00014933,2]
[339538488,1727682663017,-247.291262,0.00014933,2]
[339538489,1727682663026,-526.76,0.00014933,2]
[339538490,1727682663039,-819.42,0.00014933,2]
[339538491,1727682663050,-618.1,0.00014933,2]
[339538492,1727682663060,-557.13,0.00014933,2]
[339538493,1727682663070,-151.0,0.00014933,2]
[339538494,1727682663080,-500.0,0.00014933,2]
[339538495,1727682663090,-502.52,0.00014933,2]
[339538496,1727682663099,-500.0,0.00014933,2]
[339538497,1727682663108,-2926.14,0.00014933,2]
[339538498,1727682663118,-500.0,0.00014933,2]
[339538499,1727682663127,-570.446168,0.00014933,2]
[339538500,1727682663136,-500.0,0.00014933,2]
[339538501,1727682663146,-500.0,0.00014933,2]
[339538502,1727682663156,-570.446168,0.00014933,2]
[339538503,1727682663165,-500.0,0.00014933,2]
[339538504,1727682663175,-500.0,0.00014933,2]
[339538505,1727682663184,-500.0,0.00014933,2]
[339538506,1727682663193,-500.0,0.00014933,2]
[339538507,1727682663202,-500.0,0.00014933,2]
[339538508,1727682663212,-5944.207407,0.00014933,2]
[339538509,1727682663221,-500.0,0.00014933,2]
[339538510,1727682663230,-500.0,0.00014933,2]
[339538511,1727682663239,-500.0,0.00014933,2]
[339538512,1727682663248,-556.57,0.00014933,2]
[339538513,1727682663258,-500.0,0.00014933,2]
[339538514,1727682663267,-500.0,0.00014933,2]
[339538515,1727682663277,-500.0,0.00014933,2]
[339538516,1727682663293,-500.0,0.00014933,2]
[339538517,1727682663303,-527.33,0.00014933,2]
[339538518,1727682663312,-500.0,0.00014933,2]
[339538519,1727682663322,-539.75,0.00014933,2]
[339538520,1727682663331,-730.04,0.00014933,2]
[339538521,1727682663341,-500.0,0.00014933,2]
[339538522,1727682663350,-151.0,0.00014933,2]
[339538523,1727682663360,-151.0,0.00014933,2]
[339538524,1727682663370,-721.3,0.00014933,2]
[339538525,1727682663381,-500.0,0.00014933,2]
[339538526,1727682663389,-1000.19,0.00014933,2]
[339538527,1727682663399,-539.62,0.00014933,2]
[339538528,1727682663409,-151.0,0.00014933,2]
[339538529,1727682663419,-500.0,0.00014933,2]
[339538530,1727682663429,-1125.0,0.00014933,2]
[339538531,1727682663439,-1935.36,0.00014933,2]
[339538532,1727682663449,-500.0,0.00014933,2]
[339538533,1727682663459,-517.35708308,0.00014933,2]
[339538534,1727682663468,-500.0,0.00014933,2]
[339538535,1727682663478,-500.0,0.00014933,2]
[339538536,1727682663487,-610.09,0.00014933,2]
[339538537,1727682663497,-1709.5,0.00014933,2]
[339538538,1727682663506,-882.32011,0.00014933,2]
[339538539,1727682663515,-500.0,0.00014933,2]
[339538540,1727682663525,-500.0,0.00014933,2]
[339538541,1727682663537,-500.0,0.00014933,2]
[339538542,1727682663548,-558.07,0.00014933,2]
[339538543,1727682663558,-882.32011,0.00014933,2]
[339538544,1727682663567,-500.0,0.00014933,2]
[339538545,1727682663577,-517.60876627,0.00014933,2]
[339538546,1727682663587,-500.0,0.00014933,2]
[339538547,1727682663597,-500.0,0.00014933,2]
[339538548,1727682663606,-500.0,0.00014933,2]
[339538549,1727682663616,-500.0,0.00014933,2]
[339538550,1727682663626,-500.0,0.00014933,2]
[339538551,1727682663635,-151.0,0.00014933,2]
[339538552,1727682663645,-601.48,0.00014933,2]
[339538553,1727682663654,-500.0,0.00014933,2]
[339538554,1727682663663,-500.0,0.00014933,2]
[339538555,1727682663672,-500.0,0.00014933,2]
[339538556,1727682663682,-612.26,0.00014933,2]
[339538557,1727682663691,-500.0,0.00014933,2]
[339538558,1727682663701,-151.0,0.00014933,2]
[339538559,1727682663710,-535.43,0.00014933,2]
[339538560,1727682663719,-500.0,0.00014933,2]
[339538561,1727682663729,-500.0,0.00014933,2]
[339538562,1727682663738,-1429.954841,0.00014933,2]
[339538563,1727682663748,-759.79,0.00014933,2]
[339538564,1727682663758,-1429.954841,0.00014933,2]
[339538565,1727682663769,-500.0,0.00014933,2]
[339538566,1727682663778,-151.0,0.00014933,2]
[339538567,1727682663792,-500.0,0.00014933,2]
[339538568,1727682663801,-251.47339405,0.00014933,2]
[339538569,1727682663811,-500.0,0.00014933,2]
[339538570,1727682663821,-500.0,0.00014933,2]
[339538571,1727682663830,-500.0,0.00014933,2]
[339538572,1727682663840,-500.0,0.00014933,2]
[339538573,1727682663849,-1354.52,0.00014933,2]
[339538574,1727682663858,-623.05791889,0.00014933,2]
[339538575,1727682663869,-769.89,0.00014933,2]
[339538576,1727682663879,-534.48,0.00014933,2]
[339538577,1727682663888,-529.57,0.00014933,2]
[339538578,1727682663898,-500.0,0.00014933,2]
[339538579,1727682663908,-500.0,0.00014933,2]
[339538580,1727682663918,-151.0,0.00014933,2]
[339538581,1727682663927,-520.47240236,0.00014933,2]
[339538582,1727682663937,-528.23,0.00014933,2]
[339538583,1727682663946,-620.48,0.00014933,2]
[339538584,1727682663956,-919.16,0.00014933,2]
[339538585,1727682663966,-533.00291374,0.00014933,2]
[339538586,1727682663976,-600.26,0.00014933,2]
[339538587,1727682663985,-470.224382,0.00014933,2]
[339538588,1727682663994,-500.0,0.00014933,2]
[339538589,1727682664004,-949.13,0.00014933,2]
[339538590,1727682664014,-500.0,0.00014933,2]
[339538591,1727682664023,-500.0,0.00014933,2]
[339538592,1727682664035,-500.0,0.00014933,2]
[339538593,1727682664044,-514.42,0.00014933,2]
[339538594,1727682664054,-470.224382,0.00014933,2]
[339538595,1727682664063,-1440.75,0.00014933,2]
[339538596,1727682664073,-204.71535529,0.00014933,2]
[339538597,1727682664084,-1172.77,0.00014933,2]
[339538598,1727682664094,-500.0,0.00014933,2]
[339538599,1727682664104,-500.0,0.00014933,2]
[339538600,1727682664114,-500.0,0.00014933,2]
[339538601,1727682664123,-500.0,0.00014933,2]
[339538602,1727682664134,-500.0,0.00014933,2]
[339538603,1727682664144,-500.0,0.00014933,2]
[339538604,1727682664154,-500.0,0.00014933,2]
[339538605,1727682664165,-500.0,0.00014933,2]
[339538606,1727682664174,-500.0,0.00014933,2]
[339538607,1727682664185,-500.0,0.00014933,2]
[339538608,1727682664194,-258.053911,0.00014933,2]
[339538609,1727682664204,-500.0,0.00014933,2]
[339538610,1727682664214,-2234.97,0.00014933,2]
[339538611,1727682664225,-500.0,0.00014933,2]
[339538612,1727682664234,-500.0,0.00014933,2]
[339538613,1727682664244,-507.93230126,0.00014933,2]
[339538614,1727682664253,-258.053911,0.00014933,2]
[339538615,1727682664262,-26259.94,0.00014933,2]
[339538616,1727682664272,-500.0,0.00014933,2]
[339538617,1727682664282,-582.94,0.00014933,2]
[339538618,1727682664296,-1003.02,0.00014933,2]
[339538619,1727682664306,-500.0,0.00014933,2]
[339538620,1727682664316,-527.01,0.00014933,2]
[339538621,1727682664325,-1212.86,0.00014933,2]
[339538622,1727682664334,-423.78479755,0.00014933,2]
[339538623,1727682664344,-500.0,0.00014933,2]
[339538624,1727682664354,-500.0,0.00014933,2]
[339538625,1727682664365,-500.0,0.00014933,2]
[339538626,1727682664378,-3813.51,0.00014933,2]
[339538627,1727682664387,-172.736733,0.00014933,2]
[339538628,1727682664397,-520.87,0.00014933,2]
[339538629,1727682664407,-531.3,0.00014933,2]
[339538630,1727682664416,-500.0,0.00014933,2]
[339538631,1727682664426,-151.0,0.00014933,2]
[339538632,1727682664436,-220.438095,0.00014933,2]
[339538633,1727682664446,-500.0,0.00014933,2]
[339538634,1727682664456,-500.0,0.00014933,2]
[339538635,1727682664465,-172.736733,0.00014933,2]
[339538636,1727682664475,-500.0,0.00014933,2]
[339538637,1727682664485,-500.0,0.00014933,2]
[339538638,1727682664494,-409.992859,0.00014933,2]
[339538639,1727682664503,-500.0,0.00014933,2]
[339538640,1727682664513,-220.438095,0.00014933,2]
[339538641,1727682664522,-224.434354,0.00014933,2]
[339538642,1727682664532,-500.0,0.00014933,2]
[339538643,1727682664546,-1373.92,0.00014933,2]
[339538644,1727682664555,-520.87,0.00014933,2]
[339538645,1727682664564,-863.37,0.00014933,2]
[339538646,1727682664575,-409.992859,0.00014933,2]
[339538647,1727682664583,-507.8516575,0.00014933,2]
[339538648,1727682664593,-500.0,0.00014933,2]
[339538649,1727682664602,-500.0,0.00014933,2]
[339538650,1727682664611,-224.434354,0.00014933,2]
[339538651,1727682664620,-500.0,0.00014933,2]
[339538652,1727682664632,-500.0,0.00014933,2]
[339538653,1727682664641,-500.0,0.00014933,2]
[339538654,1727682664650,-500.0,0.00014933,2]
[339538655,1727682664659,-500.0,0.00014933,2]
[339538656,1727682664669,-500.0,0.00014933,2]
[339538657,1727682664678,-449.82732769,0.00014933,2]
[339538658,1727682664688,-2576.68,0.00014933,2]
[339538659,1727682664698,-500.0,0.00014933,2]
[339538660,1727682664707,-500.0,0.00014933,2]
[339538661,1727682664717,-593.87286234,0.00014933,2]
[339538662,1727682664726,-500.0,0.00014933,2]
[339538663,1727682664735,-500.0,0.00014933,2]
[339538664,1727682664745,-500.0,0.00014933,2]
[339538665,1727682664754,-500.0,0.00014933,2]
[339538666,1727682664763,-500.0,0.00014933,2]
[339538667,1727682664773,-625.41682386,0.00014933,2]
[339538668,1727682664782,-1062.484411,0.00014933,2]
[339538669,1727682664797,-500.0,0.00014933,2]
[339538670,1727682664807,-500.0,0.00014933,2]
[339538671,1727682664816,-500.0,0.00014933,2]
[339538672,1727682664825,-1062.484411,0.00014933,2]
[339538673,1727682664834,-543.57,0.00014933,2]
[339538674,1727682664843,-627.55,0.00014933,2]
[339538675,1727682664853,-500.0,0.00014933,2]
[339538676,1727682664863,-826.52,0.00014933,2]
[339538677,1727682664873,-1703.04,0.00014933,2]
[339538678,1727682664882,-500.0,0.00014933,2]
[339538679,1727682664891,-500.0,0.00014933,2]
[339538680,1727682664901,-500.0,0.00014933,2]
[339538681,1727682664910,-500.0,0.00014933,2]
[339538682,1727682664920,-500.0,0.00014933,2]
[339538683,1727682664929,-500.0,0.00014933,2]
[339538684,1727682664939,-500.0,0.00014933,2]
[339538685,1727682664948,-500.0,0.00014933,2]
[339538686,1727682664957,-500.0,0.00014933,2]
[339538687,1727682664966,-500.0,0.00014933,2]
[339538688,1727682664976,-600.76,0.00014933,2]
[339538689,1727682664986,-500.0,0.00014933,2]
[339538690,1727682664995,-1536.03,0.00014933,2]
[339538691,1727682665005,-644.99,0.00014933,2]
[339538692,1727682665015,-2355.39,0.00014933,2]
[339538693,1727682665024,-151.0,0.00014933,2]
[339538694,1727682665033,-500.0,0.00014933,2]
[339538695,1727682665044,-500.0,0.00014933,2]
[339538696,1727682665053,-500.0,0.00014933,2]
[339538697,1727682665062,-151.0,0.00014933,2]
[339538698,1727682665072,-500.0,0.00014933,2]
[339538699,1727682665081,-628.03101304,0.00014933,2]
[339538700,1727682665091,-500.0,0.00014933,2]
[339538701,1727682665100,-500.0,0.00014933,2]
[339538702,1727682665109,-500.0,0.00014933,2]
[339538703,1727682665119,-151.0,0.00014933,2]
[339538704,1727682665129,-500.0,0.00014933,2]
[339538705,1727682665138,-500.0,0.00014933,2]
[339538706,1727682665147,-500.0,0.00014933,2]
[339538707,1727682665320,-500.0,0.00014933,2]
[339538708,1727682665331,-500.0,0.00014933,2]
[339538709,1727682665340,-500.0,0.00014933,2]
[339538710,1727682665349,-500.0,0.00014933,2]
[339538711,1727682665358,-500.0,0.00014933,2]
[339538712,1727682665368,-704.25,0.00014933,2]
[339538713,1727682665381,-1486.16,0.00014933,2]
[339538714,1727682665391,-500.0,0.00014933,2]
[339538715,1727682665400,-500.0,0.00014933,2]
[339538716,1727682665409,-588.79,0.00014933,2]
[339538717,1727682665419,-500.0,0.00014933,2]
[339538718,1727682665428,-500.0,0.00014933,2]
[339538719,1727682665437,-500.0,0.00014933,2]
[339538720,1727682665448,-500.0,0.00014933,2]
[339538721,1727682665457,-783.57,0.00014933,2]
[339538722,1727682665466,-500.0,0.00014933,2]
[339538723,1727682665477,-169.96156324,0.00014933,2]
[339538724,1727682665982,500.0,0.00014111,2]
[339538725,1727682666121,500.0,0.00014111,2]
[339538726,1727682666189,500.0,0.00014111,2]
[339538727,1727682666366,500.0,0.00014111,2]
[339538728,1727682666737,500.0,0.00014111,2]
[339538729,1727682666980,500.0,0.00014111,2]
[339538730,1727682667104,500.0,0.00014111,2]
[339538731,1727682667443,500.0,0.00014111,2]
[339538732,1727682667534,500.0,0.00014111,2]
[339538733,1727682667571,500.0,0.00014111,2]
[339538734,1727682667765,500.0,0.00014111,2]
[339538735,1727682667846,500.0,0.00014111,2]
[339538736,1727682668558,500.0,0.00014111,2]
[339538737,1727682669061,500.0,0.00014111,2]
[339538738,1727682669761,545.39098619,0.00014111,2]
[339538739,1727682670757,500.0,0.00014111,2]
[339538740,1727682671463,500.0,0.00014111,2]
[339538741,1727682671496,500.0,0.00014111,2]
[339538742,1727682671528,1386.17,0.00014111,2]
[339538743,1727682671568,500.0,0.00014111,2]
[339538744,1727682672482,500.0,0.00014111,2]
[339538745,1727682672884,500.0,0.00014111,2]
[339538746,1727682672980,500.0,0.00014111,2]
[339538747,1727682673500,500.0,0.00014111,2]
[339538748,1727682673830,500.0,0.00014111,2]
[339538749,1727682675301,500.0,0.00014111,2]
[339538750,1727682675332,500.0,0.00014111,2]
[339538751,1727682675363,500.0,0.00014111,2]
[339538752,1727682676426,557.76,0.00014111,2]
[339538753,1727682677253,500.0,0.00014111,2]
[339538754,1727682677608,500.0,0.00014111,2]
[339538755,1727682678731,754.98,0.00014111,2]
[339538756,1727682679699,500.0,0.00014111,2]
[339538757,1727682679867,500.0,0.00014111,2]
[339538758,1727682681568,500.0,0.00014111,2]
[339538759,1727682683046,500.0,0.00014111,2]
[339538760,1727682683435,500.0,0.00014111,2]
[339538761,1727682684324,500.0,0.00014111,2]
[339538762,1727682685192,500.0,0.00014111,2]
[339538763,1727682686348,500.0,0.00014111,2]
[339538764,1727682687924,500.0,0.00014111,2]
[339538765,1727682688480,500.0,0.00014111,2]
[339538766,1727682688773,500.0,0.00014111,2]
[339538767,1727682688986,500.0,0.00014111,2]
[339538768,1727682690102,500.0,0.00014111,2]
[339538769,1727682692665,500.0,0.00014111,2]
[339538770,1727682692944,500.0,0.00014111,2]
[339538771,1727682693217,500.0,0.00014111,2]
[339538772,1727682694455,1063.72,0.00014111,2]
[339538773,1727682696939,500.0,0.00014111,2]
[339538774,1727682697054,500.0,0.00014111,2]
[339538775,1727682697350,500.0,0.00014111,2]
[339538776,1727682698214,500.0,0.00014111,2]
[339538777,1727682698626,500.63,0.00014111,2]
[339538778,1727682698716,500.0,0.00014111,2]
[339538779,1727682698976,500.0,0.00014111,2]
[339538780,1727682699103,500.0,0.00014111,2]
[339538781,1727682699172,500.0,0.00014111,2]
[339538782,1727682701834,500.0,0.00014111,2]
[339538783,1727682702148,611.15,0.00014111,2]
[339538784,1727682702435,500.0,0.00014111,2]
[339538785,1727682702664,537.49,0.00014111,2]
[339538786,1727682703292,500.0,0.00014111,2]
[339538787,1727682703489,500.0,0.00014111,2]
[339538788,1727682703713,264.25517571,0.00014111,2]
[339538789,1727682706092,463.51579337,0.00014111,2]
[339538790,1727682706400,273.68733605,0.00014111,2]
[339538791,1727682707212,500.0,0.00014111,2]
[339538792,1727682707345,500.0,0.00014111,2]
[339538793,1727682708019,500.0,0.00014111,2]
[339538794,1727682709905,513.05575828,0.00014111,2]
[339538795,1727682710676,709.55,0.00014111,2]
[339538796,1727682710840,500.0,0.00014111,2]
[339538797,1727682711337,512.92632945,0.00014111,2]
[339538798,1727682711829,522.95,0.00014111,2]
[339538799,1727682712749,500.0,0.00014111,2]
[339538800,1727682713155,1408.8,0.00014111,2]
[339538801,1727682714153,500.0,0.00014111,2]
[339538802,1727682715036,500.0,0.00014111,2]
[339538803,1727682715469,500.0,0.00014111,2]
[339538804,1727682716122,500.0,0.00014111,2]
[339538805,1727682719358,500.0,0.00014111,2]
[339538806,1727682719644,500.0,0.00014111,2]
[339538807,1727682719867,514.39,0.00014111,2]
[339538808,1727682720047,500.0,0.00014111,2]
[339538809,1727682723035,500.0,0.00014111,2]
[339538810,1727682723740,500.0,0.00014111,2]
[339538811,1727682724481,500.0,0.00014111,2]
[339538812,1727682725222,500.0,0.00014111,2]
[339538813,1727682725782,500.0,0.00014111,2]
[339538814,1727682726066,500.0,0.00014111,2]
[339538815,1727682728854,500.0,0.00014111,2]
[339538816,1727682729208,500.0,0.00014111,2]
[339538817,1727682729813,500.0,0.00014111,2]
[339538818,1727682730374,1638.39,0.00014111,2]
[339538819,1727682733478,500.0,0.00014111,2]
[339538820,1727682734697,548.05,0.00014111,2]
[339538821,1727682735076,537.38008089,0.00014111,2]
[339538822,1727682735458,500.0,0.00014111,2]
[339538823,1727682735580,605.54376893,0.00014111,2]
[339538824,1727682736220,500.0,0.00014111,2]
[339538825,1727682739075,500.0,0.00014111,2]
[339538826,1727682743315,500.0,0.00014111,2]
[339538827,1727682743785,500.0,0.00014111,2]
[339538828,1727682744912,1280.03,0.00014111,2]
[339538829,1727682745307,500.0,0.00014111,2]
[339538830,1727682745910,500.0,0.00014111,2]